{"text_format":"1","workbook":"xlsx","n_sheets":6,"sheets":["test","2ndreasons","Directorate","Monthly Return","Sheet2","Sheet1"],"not_rendered":{"charts":0,"images":0,"macros":0,"external_links":0,"defined_names":31,"comments":0,"pivot_tables":0},"unopened":[],"bounds":{"document_bytes":16777216,"sheet_cells":100000,"rows_first":2000,"rows_last":500,"rows_between":2000,"halvings":0,"cell_chars":16384,"cell_head_chars":4096},"cells_cut":0,"cells_raw":0,"read":"whole","date_system":"1900"}

{"sheet":"test","index":0,"n_rows":534,"n_cols":3,"rows_kept":534,"cut":false,"hidden":true,"merged":[]}
["01 Back & Neck","Bones","legs"]
["1Arthritis","11Cartilage damage","20Kyphosis "]
["2Back ache","12Cervical spondylosis","21Lordosis "]
["3Back disorder","13Coccyx injury","22Lumbago"]
["4Back muscle spasm","14Cramp","23Lumbar disc degeneration"]
["5Back muscle sprain","15Disc prolapse","24Mechanical back pain"]
["6Back muscle strain","16Diseases/problems of the spine and discs","25Neck ache"]
["7Back pain","17Fractured vertebra"]
["8Back spasm","18Fractures"]
["9Back sprain","19Herniated disc"]
["10Back strain"]
[]
[]
[]
[]
[null,"01 Back & Neck","21Lordosis "]
[]
[]
[]
[]
[]
[]
[]
[]
[]
[]
["26Neck pain"]
["27Neck sprain"]
["28Neck strain"]
["29OA spine"," "]
["30Osteomyelitis"]
["31Osteoporosis "]
["32Pinched nerve"]
["33PID Prolapsed intervertebral disc"]
["34Pulled muscle"]
["35Rheumatism"," "]
["36Ruptured intervertebral disc"]
["37Sciatica "]
["38Scoliosis "]
["39Slipped discs"]
["40Spinal cord injuries"]
["41Spinal nerve root compression"]
["42Spinal stenosis"]
["43Spondylitis"]
["44Spondylolysis"]
["45Sponylolisthesis "]
["46Stiff neck"]
["47Torn ligament"]
["48Trapped nerve"]
["49Whiplash"]
["50Bleeding"]
["51Cancer"]
["52Cyst"]
["53Tumour"]
["98Other back & neck problem"]
["99Other back & neck problem not known"]
["2001Ache in joint"]
["2002Arthritis"]
["2003Bone injury"]
["2004Broken bone"]
["2005Bruising"]
["2006Bunions"]
["2007Carpal tunnel syndrome"]
["2008Cartilage damage"]
["2009Cramp"]
["2010Crush injury"]
["2011CTS"]
["2012Disease of the bone"]
["2013Dislocated joint"]
["2014Fibromyalgia/Fibrositis/Fibromyositis"]
["2015Fractures"]
["2016Gout"]
["2017Head injuries"]
["2018Inflammation (muscular)"]
["2019Joint disorder"]
["2020Joint pain "]
["2021Ligament injuries"]
["2022Loss of limb"]
["2023Muscle injury"]
["2024Muscular pain"]
["2025Osteoporosis"]
["2026Pinched nerve"]
["2027Pulled muscle"]
["2028Repetitive strain injury"]
["2029Rheumatism"]
["2030RSI"]
["2031Skull fracture"]
["2032Sprain"]
["2033Stiffness"]
["2034Strain (physical)"]
["2035Swelling"]
["2036Tennis elbow"]
["2037Tenosynovitis"]
["2038Torn (lateral or medial) meniscus"]
["2039Torn ligament"]
["2040Trapped nerve"]
["2041ULD"]
["2042Upper limb disorder"]
["2045Bleeding"]
["2046Cancer"]
["2047Cyst"]
["2048Tumour"]
["2098Other musculo-skeletal problems"]
["2099Other musculo-skeletal problems not known"]
["3001Fatigue"]
["3002Addiction"]
["3003Alcoholism"]
["3004Alzheimer's disease"]
["3005Anxiety disorders"]
["3006Asthenia"]
["3007Bereavement"]
["3008Bipolar disorder"]
["3009Burn out"]
["3010Chemical dependency/substance misuse"]
["3011Chronic Fatigue"]
["3012Debility"]
["3013Delusional disorder"]
["3014Dementia"]
["3015Depression"]
["3016Drink or drug related absence"]
["3017Drug abuse"]
["3018Eating disorders (anorexia nervosa and bulimia nervosa)"]
["3019Exhaustion"]
["3020Fatigue"]
["3021Grief reaction"]
["3022Hypomania"]
["3023Insomnia"]
["3024Lethargy"]
["3025Mood disorder"]
["3026Nervous breakdown"]
["3027Nervous debility"]
["3028Nervous disorder"]
["3029Neurasthenia"]
["3030Neurosis"]
["3031Neuroticism"]
["3032Obsessive-compulsive disorder"]
["3033Panic attacks"]
["3034Panic disorder"]
["3035Paranoia"]
["3036Personal problems"]
["3037Personality disorder"]
["3038Phobias"]
["3039Post natal depression"]
["3040Post traumatic stress reaction/disorder"]
["3041Psychosis"]
["3042PTSD"]
["3043Relationship problems"]
["3044Schizophrenia"]
["3045Self-harm"]
["3046Sleep problems"]
["3047Stress"]
["3098Other Stress, depression, mental health & fatigue syndromes"]
["3099Other Stress, depression, mental health & fatigue syndromes not known"]
["4001Abscess"]
["4002Aids"]
["4003Anthrax"]
["4004Catarrh"]
["4005Cellulitis"]
["4006Chicken pox"]
["4007Cold"]
["4008Coryza"]
["4009Cough"]
["4010Fever"]
["4011Flu"]
["4012Folliculitis"]
["4013German measles"]
["4014Glandular fever"]
["4015HIV positive"]
["4016Illnesses caused by a pathogen"]
["4017Impetigo"]
["4018Infectious mononucleosis"]
["4019Influenza"]
["4020Leptospirosis"]
["4021Malaria"]
["4022Measles"]
["4023Meningitis"]
["4024Mumps"]
["4025PUO"]
["4026Rubella"]
["4027Scabies"]
["4028Shingles"]
["4029Swollen glands"]
["4030Temperature"]
["4031Varicella"]
["4032Virus"]
["4033Weil's disease"]
["4098Other Infections"]
["4099Other Infections not known"]
["5001Blackouts"]
["5002Brain injury"]
["5003Concussion"]
["5004Convulsions"]
["5005Dementia"]
["5006Dizzy spells"]
["5007Dystonia"]
["5008Epilepsy"]
["5009Fainting"]
["5010Giddiness"]
["5011Headache"]
["5012Migraine"]
["5013MS"]
["5014Multiple sclerosis"]
["5015Myalgic encephalomyelitis/ME"]
["5016Neuralgia"]
["5017Parkinsons disease"]
["5018Post Viral Syndrome"]
["5019Seizures"]
["5020Vertigo"]
["5098Other neurological"]
["5099Other neurological not known"]
["6001Abnormal vaginal bleeding"]
["6002Cervical pain"]
["6003Cystitis"]
["6004Endometriosis"]
["6005Genital injury"]
["6006Gynaecological problems"]
["6007Menorrhagia"]
["6008Menstrual disorder"]
["6009P.M.T. syndrome"]
["6010Period pains (dysmenorrhoea)"]
["6011Premenstrual syndrome"]
["6012sexually transmitted diseases"]
["6013Urinary incontinence"]
["6014Urinary infection"]
["6015Uterine fibroids"]
["6016Water infection"]
["6017Bleeding"]
["6018Cancer"]
["6019Cyst "]
["6020Tumour"]
["6098Other Genito-urinary/gynaecological "]
["6099Other Genito-urinary/gynaecological not known"]
["7001Amniotic fluid disorders"]
["7002Childbirth complications"]
["7003Eclampsia"]
["7004Fetal monitoring"]
["7005Hydramnios/polyhydramnios"]
["7006Hyperemesis gravidarium"]
["7007Miscarriage"]
["7008Morning sickness"]
["7009Oligohydramnios"]
["7010Pre-eclampsia"]
["7011Pregnancy tests"]
["7012Pregnancy ultrasound"]
["7013Pregnancy-related illnesses"]
["7014Spontaneous abortion"]
["7015Stillbirth"]
["7016Toxaemia"]
["7017Bleeding"]
["7018Cancer"]
["7019Cyst"]
["7020Tumour"]
["7098Other pregnancy related"]
["7099Other pregnancy related not known"]
["8002Achalasia"]
["8003Anal fissure"]
["8004Anal ulcer"]
["8005Appendicitis"]
["8006Bacterial botulism"]
["8007Bowel infection"]
["8008Bowel problems"]
["8009Cirrhosis"]
["8010Coeliac disease"]
["8011Colic"]
["8012Colitis"]
["8013Constipation"]
["8014Crohn's disease"]
["8015D&V"]
["8016Diarrhoea"]
["8017Diverticulitis"]
["8018Duodenal ulcer"]
["8019Dysentery "]
["8021Food allergies"]
["8022Food poisoning"]
["8023Gallstones "]
["8025Gastric ulcer"]
["8026Gastritis"]
["8027Gastro-enteritis (stomach flu)"]
["8028Gastroesophageal reflux disease"]
["8029GU"]
["8030Haematemesis"]
["8031Haemorrhoids"]
["8032Heartburn"]
["8033Hepatitis"]
["8034Hernia (inguinal, incisional, femoral and umbilical)"]
["8035IBS"]
["8036Ileus"]
["8037Indigestion"]
["8038Inflammatory bowel disease"]
["8039Irritable bowel syndrome"]
["8040Jaundice"]
["8041Kidney infection"]
["8042Kidney problems"]
["8043Kidney stones"]
["8044Nausea"]
["8045Pancreatic problems"]
["8046Pancreatitis"]
["8047Piles"]
["8048Porphyria"]
["8049Pyelonephritis"]
["8050Reflux oesophagitis"]
["8051Salmonella"]
["8052Stomach cramps"]
["8053Stomach upsets"]
["8054Traveler's diarrhoea"]
["8055Ulcerative colitis"]
["8056Viral food poisoning"]
["8057Vomiting"]
["8058Worms"]
["8059Bleeding"]
["8060Cancer"]
["8061Cyst"]
["8062Tumour"]
["8098Other Stomach, liver, kidney & digestion"]
["8099Other Stomach, liver, kidney & digestion not known"]
["9001AF"]
["9002Anaemia"]
["9003Angina"]
["9004Arrhythmia"]
["9005Atrial fibrilation"]
["9006Blood disorder"]
["9007Blood dyscrasia"]
["9008Blood pressure"]
["9009Cerebro vascular accident"]
["9010Chest pains"]
["9011Coronary artery thrombosis"]
["9012Coronary heart disease"]
["9013CVA"]
["9014Deep vein thrombosis"]
["9015DVT"]
["9016Dysrhythmia"]
["9017Haemorrhage"]
["9018Heart attack"]
["9019Heart disorder"]
["9020High cholesterol"]
["9021Hypertension"]
["9022Hypotension"]
["9023IHD"]
["9024Ischaemic heart disease"]
["9025Leukaemia"]
["9026MI"]
["9027Myocardial infarction"]
["9028Palpitations"]
["9029Paroxysmal atrial tachycardia"]
["9030PAT"]
["9031Phlebitis"]
["9032Shock"]
["9033Stroke"]
["9034Syndrome X"]
["9035Tachycardia"]
["9036Thrombosis"]
["9037Varicose veins"]
["9038VE"]
["9039Ventricular ectopics"]
["9040Ventricular tachycardia"]
["9041VT"]
["9042Bleeding"]
["9043Cancer"]
["9044Cyst"]
["9045Tumour"]
["9098Other Heart, blood pressure & circulation"]
["9099Other Heart, blood pressure & circulation not known"]
["1001Acute bronchitis"]
["1002Asbestosis"]
["1003Asthma"]
["1004Breathing difficulties"]
["1005Breathlessness"]
["1006Bronchiectasis"]
["1007Bronchiolitis"]
["1008Bronchitis"]
["1009Byssinosis"]
["1010Chest infections"]
["1011Chronic bronchitis"]
["1012Chronic obstructive airways"]
["1013COAD"]
["1014COPD"]
["1015Cystic fibrosis"]
["1016Emphysema"]
["1017Extrinsic alveolitis"]
["1018Hayfever"]
["1019Mesotheliomia"]
["1020Occupational asthma"]
["1021Pleurisy"]
["1022Pneumoconiosis"]
["1023Pneumonia"]
["1024Pulmonary barotrauma"]
["1025Respiratory difficulties"]
["1026Smoke inhalation"]
["1027Tracheitis"]
["1028Tuberculosis"]
["1029Upper respiratory tract infection"]
["1030URTI"]
["1031Wheezing"]
["1032Bleeding"]
["1033Cancer"]
["1034Cyst"]
["1035Tumour"]
["1098Other Chest & respiratory"]
["1099Other Chest & respiratory not known"]
["1101Barotrauma"]
["1102Bell's palsy"]
["1103Black eye"]
["1104Blow to eye"]
["1105Blurred vision"]
["1106Broken nose"]
["1107Broken tooth"]
["1108Cataract"]
["1109Chemical exposure to eye"]
["1110Choking"]
["1111Conjunctivitis"]
["1112Corneal abrasion"]
["1113Corneal ulcer"]
["1114Cut to eye"]
["1115Deafness"]
["1116Dental abcess"]
["1117Dental problems"]
["1118Detached retina"]
["1119Double vision"]
["1120Dry eyes"]
["1122Ear infection"]
["1123Earache"]
["1124Eye infection"]
["1125Eye injury"]
["1126Eye pain"]
["1127Eyeball scratches"]
["1128Eyelid laceration"]
["1129Foreign body/object in the eye"]
["1130Glaucoma"]
["1131Hyphaema"]
["1132Impaired hearing "]
["1133Impaired vision"]
["1134Injury to outer or inner ear"]
["1135Iritis"]
["1136Itchy eyes"]
["1137Keratitis"]
["1138Labarynthitis"]
["1139Laryngitis"]
["1140Loss of hearing"]
["1141Loss of vision"]
["1142Menieres disease"]
["1143Mouth infection"]
["1144Nose bleed"]
["1145Object in the ear"]
["1146Ocular diseases"]
["1147Orbital cellulitis"]
["1148Otitis media (glue ear)"]
["1149Otosclerosis"]
["1150Perforated eardrum"]
["1151Perforated tympanic membrane"]
["1152Pharyngitis"]
["1153Retinal artery occlusion"]
["1154Retinal dystrophy"]
["1155Ruptured tympanic membrane"]
["1156Sensitivity to light"]
["1157Septic throat"]
["1158Sinusitis"]
["1159Sore throat"]
["1160Swelling in the ear"]
["1161Throat infection"]
["1162Tinnitus"]
["1163Tonsillitis"]
["1164Tooth extraction"]
["1165Toothache"]
["1166Uveitis"]
["1167Bleeding"]
["1168Cancer"]
["1169Cyst"]
["1170Tumour"]
["1198Other Eye, ear, nose & mouth/dental "]
["1199Other Eye, ear, nose & mouth/dental not known"]
["1201Abrasion"]
["1202Acne"]
["1203Allergy/allergic reaction"]
["1204Assault"]
["1205Bites - insect, snake, animals, human"]
["1206Blisters"]
["1207Burns"]
["1208Chrome ulceration"]
["1209Cosmetic surgery"]
["1210Cuts"]
["1211Decompression sickness"]
["1212Dermatitis"]
["1213Diabetes"]
["1214Diseases of the skin"]
["1215Drowning (near)"]
["1216Eczema"]
["1217Electrical injury/electrical shock"]
["1218Endocrine problems (diet and weight)"]
["1219Fertility treatment"]
["1220 "]
["1221Inflammation"]
["1222Injection"]
["1223Insect bite/stings"]
["1224Lacerations"]
["1225Metabolic problems (diet and weight)"]
["1226Nutritional problems"]
["1227Poisoning (chemical)"]
["1228Psoriasis"]
["1229Rash"]
["1230S.A.D.  "]
["1231Scald"]
["1232Scratch"]
["1233Side effects of antibiotics"]
["1234Side effects of injection/vaccination"]
["1235Skin allergy"]
["1236Skin disorder"]
["1237Skin infection"]
["1238Skin irritation"]
["1239Splinters"]
["1240Sun burn / sun stroke"]
["1241Ulceration"]
["1242Unknown cause"]
["1243Vaccination reaction"]
["1244Bleeding"]
["1245Cancer"]
["1246Cyst"]
["1247Tumour"]
["1298Other  "]
["1299Other not known"]
["1300Arm Injury"]
["1301Back Injury"]
["1302Eye Injury"]
["1303Foot Injury"]
["1304Hand Injury"]
["1305Head Injury"]
["1306Leg Injury"]
["1307Musculor Injury"]
["1308Neck Injury"]
["1309"]
["1398Other injury"]
["1400Work Related Upper Limb Disorder"]
["1401RSI Repetitive Strain Injury"]
["1402Infection"]
["1498Other Work Related Incident (not injury)"]

{"sheet":"2ndreasons","index":1,"n_rows":72,"n_cols":14,"rows_kept":72,"cut":false,"hidden":false,"merged":[]}
["Back&Neck__01","MusculoSkeletal__02","StressFatigueMentalHealth__03","Infections__04","Neurological__05","Genito-urinary/gynaecological__06","Pregnancy Related__07","Stom, Liver, Kidney, Digest__08","Heart, Pressure & Circu__09","ChestandRespiratory__10","Eye, Ear, Nose, Mouth__11","Other__12","Work Related Incident__13","Work Related Illness__14"]
["01001__Arthritis","02001__Ache in joint","03001__Fatigue","04001__Abscess","05001__Blackouts","06001__Abnormal vaginal bleeding","07001__Amniotic fluid disorders","08002__Achalasia","09001__AF","10001__Acute bronchitis","11001__Barotrauma","12001__Abrasion","13000__Arm Injury","14000__Work Related Upper Limb Disorder"]
["01002__Back ache","02002__Arthritis","03002__Addiction","04002__Aids","05002__Brain injury","06002__Cervical pain","07002__Childbirth complications","08003__Anal fissure","09002__Anaemia","10002__Asbestosis","11002__Bell's palsy","12002__Acne","13001__Back Injury","14001__RSI Repetitive Strain Injury"]
["01003__Back disorder","02003__Bone injury","03003__Alcoholism","04003__Anthrax","05003__Concussion","06003__Cystitis","07003__Eclampsia","08004__Anal ulcer","09003__Angina","10003__Asthma","11003__Black eye","12003__Allergy/allergic reaction","13002__Eye Injury","14002__Infection"]
["01004__Back muscle spasm","02004__Broken bone","03004__Alzheimer's disease","04004__Catarrh","05004__Convulsions","06004__Endometriosis","07004__Fetal monitoring","08005__Appendicitis","09004__Arrhythmia","10004__Breathing difficulties","11004__Blow to eye","12004__Assault","13003__Foot Injury","14098__Other Work Related Incident (not injury)"]
["01005__Back muscle sprain","02005__Bruising","03005__Anxiety disorders","04005__Cellulitis","05005__Dementia","06005__Genital injury","07005__Hydramnios/polyhydramnios","08006__Bacterial botulism","09005__Atrial fibrilation","10005__Breathlessness","11005__Blurred vision","12005__Bites - insect, snake, animals, human","13004__Hand Injury"]
["01006__Back muscle strain","02006__Bunions","03006__Asthenia","04006__Chicken pox","05006__Dizzy spells","06006__Gynaecological problems","07006__Hyperemesis gravidarium","08007__Bowel infection","09006__Blood disorder","10006__Bronchiectasis","11006__Broken nose","12006__Blisters","13005__Head Injury"]
["01007__Back pain","02007__Carpal tunnel syndrome","03007__Bereavement","04007__Cold","05007__Dystonia","06007__Menorrhagia","07007__Miscarriage","08008__Bowel problems","09007__Blood dyscrasia","10007__Bronchiolitis","11007__Broken tooth","12007__Burns","13006__Leg Injury"]
["01008__Back spasm","02008__Cartilage damage","03008__Bipolar disorder","04008__Coryza","05008__Epilepsy","06008__Menstrual disorder","07008__Morning sickness","08009__Cirrhosis","09008__Blood pressure","10008__Bronchitis","11008__Cataract","12008__Chrome ulceration","13007__Musculor Injury"]
["01009__Back sprain","02009__Cramp","03009__Burn out","04009__Cough","05009__Fainting","06009__P.M.T. syndrome","07009__Oligohydramnios","08010__Coeliac disease","09009__Cerebro vascular accident","10009__Byssinosis","11009__Chemical exposure to eye","12009__Cosmetic surgery","13008__Neck Injury"]
["01010__Back strain","02010__Crush injury","03010__Chemical dependency/substance misuse","04010__Fever","05010__Giddiness","06010__Period pains (dysmenorrhoea)","07010__Pre-eclampsia","08011__Colic","09010__Chest pains","10010__Chest infections","11010__Choking","12010__Cuts","13098__Other injury"]
["01011__Cartilage damage","02011__CTS","03011__Chronic Fatigue","04011__Flu","05011__Headache","06011__Premenstrual syndrome","07011__Pregnancy tests","08012__Colitis","09011__Coronary artery thrombosis","10011__Chronic bronchitis","11011__Conjunctivitis","12011__Decompression sickness"]
["01012__Cervical spondylosis","02012__Disease of the bone","03012__Debility","04012__Folliculitis","05012__Migraine","06012__sexually transmitted diseases","07012__Pregnancy ultrasound","08013__Constipation","09012__Coronary heart disease","10012__Chronic obstructive airways","11012__Corneal abrasion","12012__Dermatitis"]
["01013__Coccyx injury","02013__Dislocated joint","03013__Delusional disorder","04013__German measles","05013__MS","06013__Urinary incontinence","07013__Pregnancy-related illnesses","08014__Crohn's disease","09013__CVA","10013__COAD","11013__Corneal ulcer","12013__Diabetes"]
["01014__Cramp","02014__Fibromyalgia/Fibrositis/Fibromyositis","03014__Dementia","04014__Glandular fever","05014__Multiple sclerosis","06014__Urinary infection","07014__Spontaneous abortion","08015__D&V","09014__Deep vein thrombosis","10014__COPD","11014__Cut to eye","12014__Diseases of the skin"]
["01015__Disc prolapse","02015__Fractures","03015__Depression","04015__HIV positive","05015__Myalgic encephalomyelitis/ME","06015__Uterine fibroids","07015__Stillbirth","08016__Diarrhoea","09015__DVT","10015__Cystic fibrosis","11015__Deafness","12015__Drowning (near)"]
["01016__Diseases/problems of the spine and discs","02016__Gout","03016__Drink or drug related absence","04016__Illnesses caused by a pathogen","05016__Neuralgia","06016__Water infection","07016__Toxaemia","08017__Diverticulitis","09016__Dysrhythmia","10016__Emphysema","11016__Dental abcess","12016__Eczema"]
["01017__Fractured vertebra","02017__Head injuries","03017__Drug abuse","04017__Impetigo","05017__Parkinsons disease","06017__Bleeding","07017__Bleeding","08018__Duodenal ulcer","09017__Haemorrhage","10017__Extrinsic alveolitis","11017__Dental problems","12017__Electrical injury/electrical shock"]
["01018__Fractures","02018__Inflammation (muscular)","03018__Eating disorders (anorexia nervosa and bulimia nervosa)","04018__Infectious mononucleosis","05018__Post Viral Syndrome","06018__Cancer","07018__Cancer","08019__Dysentery ","09018__Heart attack","10018__Hayfever","11018__Detached retina","12018__Endocrine problems (diet and weight)"]
["01019__Herniated disc","02019__Joint disorder","03019__Exhaustion","04019__Influenza","05019__Seizures","06019__Cyst ","07019__Cyst","08021__Food allergies","09019__Heart disorder","10019__Mesotheliomia","11019__Double vision","12019__Fertility treatment"]
["01020__Kyphosis ","02020__Joint pain ","03020__Fatigue","04020__Leptospirosis","05020__Vertigo","06020__Tumour","07020__Tumour","08022__Food poisoning","09020__High cholesterol","10020__Occupational asthma","11020__Dry eyes","12021__Inflammation"]
["01021__Lordosis ","02021__Ligament injuries","03021__Grief reaction","04021__Malaria","05098__Other neurological","06098__Other Genito-urinary/gynaecological ","07098__Other pregnancy related","08023__Gallstones ","09021__Hypertension","10021__Pleurisy","11022__Ear infection","12022__Injection"]
["01022__Lumbago","02022__Loss of limb","03022__Hypomania","04022__Measles","05099__Other neurological not known","06099__Other Genito-urinary/gynaecological not known","07099__Other pregnancy related not known","08025__Gastric ulcer","09022__Hypotension","10022__Pneumoconiosis","11023__Earache","12023__Insect bite/stings"]
["01023__Lumbar disc degeneration","02023__Muscle injury","03023__Insomnia","04023__Meningitis",null,null,null,"08026__Gastritis","09023__IHD","10023__Pneumonia","11024__Eye infection","12024__Lacerations"]
["01024__Mechanical back pain","02024__Muscular pain","03024__Lethargy","04024__Mumps",null,null,null,"08027__Gastro-enteritis (stomach flu)","09024__Ischaemic heart disease","10024__Pulmonary barotrauma","11025__Eye injury","12025__Metabolic problems (diet and weight)"]
["01025__Neck ache","02025__Osteoporosis","03025__Mood disorder","04025__PUO",null,null,null,"08028__Gastroesophageal reflux disease","09025__Leukaemia","10025__Respiratory difficulties","11026__Eye pain","12026__Nutritional problems"]
["01026__Neck pain","02026__Pinched nerve","03026__Nervous breakdown","04026__Rubella",null,null,null,"08029__GU","09026__MI","10026__Smoke inhalation","11027__Eyeball scratches","12027__Poisoning (chemical)"]
["01027__Neck sprain","02027__Pulled muscle","03027__Nervous debility","04027__Scabies",null,null,null,"08030__Haematemesis","09027__Myocardial infarction","10027__Tracheitis","11028__Eyelid laceration","12028__Psoriasis"]
["01028__Neck strain","02028__Repetitive strain injury","03028__Nervous disorder","04028__Shingles",null,null,null,"08031__Haemorrhoids","09028__Palpitations","10028__Tuberculosis","11029__Foreign body/object in the eye","12029__Rash"]
["01029__OA spine","02029__Rheumatism","03029__Neurasthenia","04029__Swollen glands",null,null,null,"08032__Heartburn","09029__Paroxysmal atrial tachycardia","10029__Upper respiratory tract infection","11030__Glaucoma","12030__S.A.D.  "]
["01030__Osteomyelitis","02030__RSI","03030__Neurosis","04030__Temperature",null,null,null,"08033__Hepatitis","09030__PAT","10030__URTI","11031__Hyphaema","12031__Scald"]
["01031__Osteoporosis ","02031__Skull fracture","03031__Neuroticism","04031__Varicella",null,null,null,"08034__Hernia (inguinal, incisional, femoral and umbilical)","09031__Phlebitis","10031__Wheezing","11032__Impaired hearing ","12032__Scratch"]
["01032__Pinched nerve","02032__Sprain","03032__Obsessive-compulsive disorder","04032__Virus",null,null,null,"08035__IBS","09032__Shock","10032__Bleeding","11033__Impaired vision","12033__Side effects of antibiotics"]
["01033__PID Prolapsed intervertebral disc","02033__Stiffness","03033__Panic attacks","04033__Weil's disease",null,null,null,"08036__Ileus","09033__Stroke","10033__Cancer","11034__Injury to outer or inner ear","12034__Side effects of injection/vaccination"]
["01034__Pulled muscle","02034__Strain (physical)","03034__Panic disorder","04034__Swine Flu",null,null,null,"08037__Indigestion","09034__Syndrome X","10034__Cyst","11035__Iritis","12035__Skin allergy"]
["01035__Rheumatism","02035__Swelling","03035__Paranoia","04098__Other Infections",null,null,null,"08038__Inflammatory bowel disease","09035__Tachycardia","10035__Tumour","11036__Itchy eyes","12036__Skin disorder"]
["01036__Ruptured intervertebral disc","02036__Tennis elbow","03036__Personal problems","04099__Other Infections not known",null,null,null,"08039__Irritable bowel syndrome","09036__Thrombosis","10098__Other Chest & respiratory","11037__Keratitis","12037__Skin infection"]
["01037__Sciatica ","02037__Tenosynovitis","03037__Personality disorder",null,null,null,null,"08040__Jaundice","09037__Varicose veins","10099__Other Chest & respiratory not known","11038__Labarynthitis","12038__Skin irritation"]
["01038__Scoliosis ","02038__Torn (lateral or medial) meniscus","03038__Phobias",null,null,null,null,"08041__Kidney infection","09038__VE",null,"11039__Laryngitis","12039__Splinters"]
["01039__Slipped discs","02039__Torn ligament","03039__Post natal depression",null,null,null,null,"08042__Kidney problems","09039__Ventricular ectopics",null,"11040__Loss of hearing","12040__Sun burn / sun stroke"]
["01040__Spinal cord injuries","02040__Trapped nerve","03040__Post traumatic stress reaction/disorder",null,null,null,null,"08043__Kidney stones","09040__Ventricular tachycardia",null,"11041__Loss of vision","12041__Ulceration"]
["01041__Spinal nerve root compression","02041__ULD","03041__Psychosis",null,null,null,null,"08044__Nausea","09041__VT",null,"11042__Menieres disease","12042__Unknown cause"]
["01042__Spinal stenosis","02042__Upper limb disorder","03042__PTSD",null,null,null,null,"08045__Pancreatic problems","09042__Bleeding",null,"11043__Mouth infection","12043__Vaccination reaction"]
["01043__Spondylitis","02045__Bleeding","03043__Relationship problems",null,null,null,null,"08046__Pancreatitis","09043__Cancer",null,"11044__Nose bleed","12044__Bleeding"]
["01044__Spondylolysis","02046__Cancer","03044__Schizophrenia",null,null,null,null,"08047__Piles","09044__Cyst",null,"11045__Object in the ear","12045__Cancer"]
["01045__Sponylolisthesis ","02047__Cyst","03045__Self-harm",null,null,null,null,"08048__Porphyria","09045__Tumour",null,"11046__Ocular diseases","12046__Cyst"]
["01046__Stiff neck","02048__Tumour","03046__Sleep problems",null,null,null,null,"08049__Pyelonephritis","09098__Other Heart, blood pressure & circulation",null,"11047__Orbital cellulitis","12047__Tumour"]
["01047__Torn ligament","02098__Other musculo-skeletal problems","03047__Stress",null,null,null,null,"08050__Reflux oesophagitis","09099__Other Heart, blood pressure & circulation not known",null,"11048__Otitis media (glue ear)","12098__Other  "]
["01048__Trapped nerve","02099__Other musculo-skeletal problems not known","03098__Other Stress, depression, mental health & fatigue syndromes",null,null,null,null,"08051__Salmonella",null,null,"11049__Otosclerosis","12099__Other not known"]
["01049__Whiplash",null,"03099__Other Stress, depression, mental health & fatigue syndromes not known",null,null,null,null,"08052__Stomach cramps",null,null,"11050__Perforated eardrum"]
["01050__Bleeding",null,null,null,null,null,null,"08053__Stomach upsets",null,null,"11051__Perforated tympanic membrane"]
["01051__Cancer",null,null,null,null,null,null,"08054__Traveler's diarrhoea",null,null,"11052__Pharyngitis"]
["01052__Cyst",null,null,null,null,null,null,"08055__Ulcerative colitis",null,null,"11053__Retinal artery occlusion"]
["01053__Tumour",null,null,null,null,null,null,"08056__Viral food poisoning",null,null,"11054__Retinal dystrophy"]
["01098__Other back & neck problem",null,null,null,null,null,null,"08057__Vomiting",null,null,"11055__Ruptured tympanic membrane"]
["01099__Other back & neck problem not known",null,null,null,null,null,null,"08058__Worms",null,null,"11056__Sensitivity to light"]
[null,null,null,null,null,null,null,"08059__Bleeding",null,null,"11057__Septic throat"]
[null,null,null,null,null,null,null,"08060__Cancer",null,null,"11058__Sinusitis"]
[null,null,null,null,null,null,null,"08061__Cyst",null,null,"11059__Sore throat"]
[null,null,null,null,null,null,null,"08062__Tumour",null,null,"11060__Swelling in the ear"]
[null,null,null,null,null,null,null,"08098__Other Stomach, liver, kidney & digestion",null,null,"11061__Throat infection"]
[null,null,null,null,null,null,null,"08099__Other Stomach, liver, kidney & digestion not known",null,null,"11062__Tinnitus"]
[null,null,null,null,null,null,null,null,null,null,"11063__Tonsillitis"]
[null,null,null,null,null,null,null,null,null,null,"11064__Tooth extraction"]
[null,null,null,null,null,null,null,null,null,null,"11065__Toothache"]
[null,null,null,null,null,null,null,null,null,null,"11066__Uveitis"]
[null,null,null,null,null,null,null,null,null,null,"11067__Bleeding"]
[null,null,null,null,null,null,null,null,null,null,"11068__Cancer"]
[null,null,null,null,null,null,null,null,null,null,"11069__Cyst"]
[null,null,null,null,null,null,null,null,null,null,"11070__Tumour"]
[null,null,null,null,null,null,null,null,null,null,"11098__Other Eye, ear, nose & mouth/dental "]
[null,null,null,null,null,null,null,null,null,null,"11099__Other Eye, ear, nose & mouth/dental not known"]

{"sheet":"Directorate","index":2,"n_rows":13,"n_cols":1,"rows_kept":13,"cut":false,"hidden":true,"merged":[]}
["APP Appeal"]
["DIS Dismissal"]
["HOME Home Visit"]
["INF Informal Warning"]
["OH1 Occupational Health Referral"]
["PTW Phased Return to Work"]
["RDU Restricted or Amended Duties"]
["RED Redeployment"]
["RTWI Return to Work Interview"]
["STG1 First Stage Review Meeting"]
["STG2 Second Stage Review Meeting"]
["AHR Altered Hours"]
["WPAD Workplace Adaptations"]

{"sheet":"Monthly Return","index":3,"n_rows":43,"n_cols":15,"rows_kept":43,"cut":false,"hidden":false,"merged":[[36,1,36,3],[36,5,36,7],[36,10,36,11],[5,7,5,8],[6,7,6,10],[10,3,10,4],[10,7,10,14]]}
["Measures to manage absence",null,null,null,null,"Please make sure you fill in your name, title and extension at the bottom"]
[null,null,null,null,null,"of the sheet so HRBC can contact you if they have any queries."]
["EBOR ACADEMY TRUST",null,null,null,null,"Thank you."]
["ABSENCE MANAGEMENT RETURN"]
[null,null,null,null,null,"Nil return?"]
["Please ensure that this form is completed (including nil returns) and returned to",null,null,null,null,"Month (ending)"]
["HRBC  by the monthly payroll deadline",null,null,null,null,"Section/Dept/ Directorate"]
["each month to enable staff to be paid correctly."]
["Email to contractpayrolls@york.gov.uk"]
["Please note that iTrent is updated based on the information recorded on this return only.  We do not record any information supplied on self certs or doctors notes."]
[null,null,null,"REASON FOR SICKNESS ABSENCE",null,null,null,"CONTRACTED HOURS WEEKLY WORKING PATTERN (Record the pattern of hours and days normally worked in the week of the absence: Please record nil hours as zero (0))"]
["NAME","CONTRACT NUMBER","POSITION","Overall Code* ","Detailed Code (Please select now the appropriate detailed reason from the drop down menu)","FIRST / Original DAY OF SICKNESS","LAST DAY OF SICKNESS or Ongoing","Mon","Tue","Wed","Thu","Fri","Sat","Sun","Total"]
[null,55555,null,"BackNeck ","01001__Arthritis","2010-04-04","2010-04-06",7.4,7.4,0,7.4,0,0,0,{"$f":"SUM(H13:N13)","v":22.200000000000003}]
[]
[]
[null,null,null,null,null,null,null,null,null,null,null,null,null,null,{"$f":"SUM(H16:N16)","v":0}]
[null,null,null,null,null,null,null,null,null,null,null,null,null,null,0]
[null,null,null,null,null,null,null,null,null,null,null,null,null,null,0]
[null,null,null,null,null,null,null,null,null,null,null,null,null,null,0]
[null,null,null,null,null,null,null,null,null,null,null,null,null,null,0]
[null,null,null,null,null,null,null,null,null,null,null,null,null,null,0]
[null,null,null,null,null,null,null,null,null,null,null,null,null,null,0]
[null,null,null,null,null,null,null,null,null,null,null,null,null,null,0]
[null,null,null,null,null,null,null,null,null,null,null,null,null,null,0]
[null,null,null,null,null,null,null,null,null,null,null,null,null,null,0]
[null,null,null,null,null,null,null,null,null,null,null,null,null,null,0]
[null,null,null,null,null,null,null,null,null,null,null,null,null,null,0]
[null,null,null,null,null,null,null,null,null,null,null,null,null,null,0]
[null,null,null,null,null,null,null,null,null,null,null,null,null,null,0]
[null,null,null,null,null,null,null,null,null,null,null,null,null,null,0]
[null,null,null,null,null,null,null,null,null,null,null,null,null,null,0]
[null,null,null,null,null,null,null,null,null,null,null,null,null,null,0]
[null,null,null,null,null,null,null,null,null,null,null,null,null,null,0]
[null,null,null,null,null,null,null,null,null,null,null,null,null,null,0]
[null,null,null,null,null,null,null,null,null,null,null,null,null,null,{"$f":"SUM(O14:O34)","v":0}]
[]
["Line Manager's name:",null,null,null,null,"Extension",null,null,4092,null,null,null,"Signature"]
[]
[]
["* Reasons for absence – Overall Code: Please note the following points:"]
["- Pregnancy-related (exclude maternity leave)"]
["- Work-related injury  - use when the absence is work-related caused by a physical injury"]
["- Work-related ill-health – use when the absence is work-related caused by occupational ill-health"]

{"sheet":"Sheet2","index":4,"n_rows":14,"n_cols":2,"rows_kept":14,"cut":false,"hidden":true,"merged":[]}
["BackNeck ","01 Back & Neck"]
["MusculoSkeletal","02 Other Musculo"]
["StressFatigueMentalHealth","03 Stress Depression, etc"]
["Infections","04 Infections"]
["Neurological","05 Neurological"]
["Genitourinarygynaecological","06 Genito-urinary/gynaecological"]
["PregnancyRelated","07 Pregnancy Related"]
["StomLiverKidneyDigest","08 Stomach, liver, kidney, digest"]
["HeartPressureCircu","09 Heart, blood pressure, Circ"]
["ChestandRespiratory","10 Chest and respiratory "]
["EyeEarNoseMouth","11 Eye, ear, nose and mouth"]
["Other","12 Other"]
["WorkRelatedIncident","13 IND 13 Work related incident"]
["WorkRelatedIllness","14  IOC Work related illness"]

{"sheet":"Sheet1","index":5,"n_rows":0,"n_cols":0,"rows_kept":0,"cut":false,"hidden":false,"merged":[]}